{"text_format":"1","workbook":"xlsx","n_sheets":48,"sheets":["Инструкция","Лог обновления","Титульный","Территории","Дифференциация","Доступ к товарам и услугам","Публикация в других источниках","Сведения об изменении","Комментарии","Проверка","AllSheetsInThisWorkbook","TEHSHEET","modCheckCyan","modSettings","modfrmSetForPrint","modInfo","et_union_hor","et_union_vert","modList00","modList01","modList02","modList03","modList07","modList09","modHTTP","modfrmRegion","MR_LIST","REESTR_VT","REESTR_VED","modfrmReestrObj","DataOrg","modProv","modReestr","modfrmReestr","modUpdTemplMain","REESTR_ORG","modClassifierValidate","modHyp","modfrmDateChoose","modComm","modThisWorkbook","REESTR_MO","modfrmReestrMR","modServiceModule","modfrmCheckUpdates","REESTR_DS","REESTR_CHS","REESTR_LINK"],"not_rendered":{"charts":0,"images":22,"macros":1,"external_links":0,"defined_names":195,"comments":0,"pivot_tables":0},"unopened":[],"bounds":{"document_bytes":16777216,"sheet_cells":100000,"rows_first":2000,"rows_last":500,"rows_between":2000,"halvings":0,"cell_chars":16384,"cell_head_chars":4096},"cells_cut":0,"cells_raw":0,"read":"whole","date_system":"1900"}

{"sheet":"Инструкция","index":0,"n_rows":90,"n_cols":27,"rows_kept":90,"cut":false,"hidden":false,"merged":[[74,4,74,23],[75,4,75,23],[82,4,82,23],[87,5,87,18],[89,5,89,23],[60,7,60,23],[85,4,85,23],[79,4,79,23],[69,4,69,23],[78,4,78,23],[83,4,83,23],[70,4,70,23],[76,4,76,23],[80,4,80,23],[81,4,81,23],[77,4,77,23],[72,5,72,23],[73,5,73,23],[1,1,1,6],[2,1,2,2],[4,1,4,24],[6,4,18,23],[20,5,20,12],[21,15,21,23],[20,15,20,23],[58,4,58,6],[71,5,71,23],[57,4,57,23],[22,15,22,22],[21,5,21,12],[34,4,38,23],[39,4,39,23],[40,4,44,23],[58,7,58,23],[59,4,59,6],[45,4,56,23]]}
[null,null,null,null,null,null,null,null,null,null,null,null,null,null,null,null,null,null,null,null,null,null,null,null,null,null," (требуется обновление)"]
[null,{"$f":"\"Код шаблона: \" & GetCode()","v":"Код шаблона: JKH.OPEN.INFO.QUARTER.GVS.6"}]
[null,{"$f":"\"Версия \" & GetVersion()","v":"Версия 1.0"}]
[]
[null,"Информация о наличии (отсутствии) технической возможности подключения к централизованной системе горячего водоснабжения, а также о регистрации и ходе реализации заявок о подключении к централизованной системе горячего водоснабжения"]
[]
[null,null,null,null,"• На рабочем месте должен быть установлен MS Office 2003 SP3, 2007 SP3, 2010, 2013 с полной версией MS Excel                                                                                                                                • Для корректной работы отчета необходим доступ к сети \"Интернет\"                                                         \n                                                                                                                                                          • Макросы во время работы должны быть включены (!)\n• Для корректной работы отчёта требуется выбрать низкий уровень безопасности\n(В меню MS Excel 2003: Сервис | Макрос | Безопасность | выбрать пункт «Низкая безопасность» | OK)\n(В меню MS Excel 2007/2010/2013: Параметры Excel | Центр управления безопасностью | Параметры центра управления безопасностью | Параметры макросов | Включить все макросы | ОК)\n\n• Если Вы работаете в табличном процессоре MS Excel 2007 и выше, то можете использовать для работы формат XLSB (Двоичная книга Excel). При работе в формате XLSB заметно быстрее происходит сохранение файла, а также уменьшается размер по сравнению с форматами XLS и XLSM\n\n• Не рекомендуется снимать защиту с листов и каким-либо образом модифицировать защищаемые формулы и расчётные поля, в противном случае, отчёт будет отклонён системой\n• При сохранении не следует выбирать формат XLSX (Книга Excel), так как в указанном формате макросы, необходимые для работы отчёта, безвозвратно удаляются"]
[]
[]
[]
[]
[]
[]
[]
[]
[]
[]
[]
[]
[]
[null,null,null,null,"A"," - не обязательные для заполнения",null,null,null,null,null,null,null,null,"A"," - с формулами и константами"]
[null,null,null,null,"A"," - обязательные для заполнения",null,null,null,null,null,null,null,null,"A"," - с выбором значений до двойному клику,"]
[null,null,null,null,null,null,null,null,null,null,null,null,null,null,null,"либо с возможностью выбора даты из календаря или ручного ввода"]
[]
[]
[]
[]
[]
[]
[]
[]
[]
[]
[]
[null,null,null,null,"Если в предложенном Вам списке необходимая организация, МР/МО отсутствуют, обновите реестры с помощью кнопок\n\nВ результате синхронизации с базой данных список организаций (МР/МО) будет заменён актуальным (механизм синхронизации требует подключения к сети Интернет и основан на использовании протокола HTTPS (TCP порт 443))\n\nЕсли после обновления Вам не удалось найти необходимую организацию в списке, обратитесь к ответственному за поддержание реестра Вашего региона."]
[]
[]
[]
[]
[]
[]
[]
[]
[]
[]
[null,null,null,null,"• При сохранении шаблона осуществляется проверка корректности данных, в том числе на наличие значений в ячейках, обязательных для заполнения\n\n• Если какая-то ячейка не удовлетворяет условию проверки, на лист «Проверка» добавляется гиперссылка на данную ячейку и указывается причина ошибки\n\n• В колонке «Статус» для каждого сообщения возможны 2 значения: ошибка и предупреждение\n\n• При наличии сообщений со статусом «Ошибка» шаблон будет отклонён системой и не будет загружен в хранилище данных, сообщения со статусом «Предупреждение» носят информационный характер, и такой шаблон будет принят системой"]
[]
[]
[]
[]
[]
[]
[]
[]
[]
[]
[]
[null,null,null,null,"Обратиться в службу технической поддержки"]
[]
[]
[]
[]
[]
[]
[]
[]
[]
[]
[]
[null,null,null,null,"Законодательная основа шаблона"]
[null,null,null,null,"Данный шаблон разработан в соответствии с:"]
[null,null,null,null," • ","Постановлением Правительства РФ от 17.01.2013 N 6 \"О стандартах раскрытия информации в сфере водоснабжения и водоотведения\""]
[null,null,null,null," • ","Приказом ФСТ России от 15.05.2013 N 129 \"Об утверждении форм предоставления информации, подлежащей раскрытию, организациями, осуществляющими горячее водоснабжение, холодное водоснабжение и водоотведение, и органами регулирования тарифов, а также Правил заполнения таких форм\""]
[]
[null,null,null,null,"Принципы работы с шаблоном"]
[null,null,null,null,"  Перед началом работы с шаблоном Вам необходимо нажать кнопку \"Приступить к заполнению\", после чего на форме выбора выбрать из выпадающего списка нужный субъект РФ. После выбора субъекта РФ в шаблоне отобразятся листы для заполнения."]
[null,null,null,null,"  На листе «Титульный» нужно заполнить все ячейки голубого цвета."]
[null,null,null,null,"  На листе «Уведомление» «Адрес сайта в сети интернет» вводите, не нарушая цвет ячейки /если копируете гиперссылку из браузера, то выполните двойной щелчок левой кнопки мыши по ячейке и только после этого можете вставить скопированный элемент/.\n"]
[null,null,null,null,"  При вводе даты на расчетных листах необходимо выбрать дату из календаря (иконка справа от выбранной ячейки), либо ввести дату непосредственно в ячейку в формате - 'ДД.ММ.ГГГГ'."]
[null,null,null,null,"  Если какой-либо из показателей на расчетных листах для Вашей организации отсутствует, введите в поле, обязательное для заполнение, «0» (для числовых показателей) и «-» (для текстовых).\n"]
[null,null,null,null,"  Внимательно следите за информационными сообщениями на расчетных листах."]
[null,null,null,null,"  Все необходимые комментарии по всем формам Вы можете отразить на листе «Комментарии»."]
[null,null,null,null,"Инструкция по загрузке сопроводительных материалов с помощью \"ЕИАС Мониторинг\""]
[null,null,null,null,"Получить более полную Инструкцию для данного шаблона"]
[]
[null,null,null,null,"При наличии подключения к Интернет, можно автоматически проверять наличие доступных обновлений. Выберите способ оповещения о наличии обновлений для отчёта:"]
[]
[null,null,null,null,null,"проверять доступные обновления (рекомендуется)",null,null,null,null,null,null,null,null,null,null,null,null,null,null,null,null,null,null,null,null,"y"]
[]
[null,null,null,null,null,"никогда не проверять наличие обновлений (не рекомендуется)"]

{"sheet":"Лог обновления","index":1,"n_rows":11,"n_cols":3,"rows_kept":11,"cut":false,"hidden":true,"merged":[]}
["Дата/Время","Сообщение","Статус"]
["2017-07-14T09:35:17","Проверка доступных обновлений...","Информация"]
["2017-07-14T09:35:18","Нет доступных обновлений для отчёта с кодом JKH.OPEN.INFO.QUARTER.GVS.6!","Информация"]
["2017-07-25T10:02:33","Проверка доступных обновлений...","Информация"]
["2017-07-25T10:02:34","Нет доступных обновлений для отчёта с кодом JKH.OPEN.INFO.QUARTER.GVS.6!","Информация"]
["2017-07-25T10:02:50","Проверка доступных обновлений...","Информация"]
["2017-07-25T10:02:51","Нет доступных обновлений для отчёта с кодом JKH.OPEN.INFO.QUARTER.GVS.6!","Информация"]
["2017-07-25T10:06:06","Проверка доступных обновлений...","Информация"]
["2017-07-25T10:06:07","Нет доступных обновлений для отчёта с кодом JKH.OPEN.INFO.QUARTER.GVS.6!","Информация"]
["2017-07-26T08:40:59","Проверка доступных обновлений...","Информация"]
["2017-07-26T08:41:00","Нет доступных обновлений для отчёта с кодом JKH.OPEN.INFO.QUARTER.GVS.6!","Информация"]

{"sheet":"Титульный","index":2,"n_rows":41,"n_cols":6,"rows_kept":41,"cut":false,"hidden":false,"merged":[[4,4,4,5]]}
[null,null,null,null,null,28902265]
[]
[]
[null,null,null,null,null,{"$f":"version","v":"Версия 1.0"}]
[null,null,null,null,"Информация о наличии (отсутствии) технической возможности подключения к централизованной системе горячего водоснабжения, а также о регистрации и ходе реализации заявок о подключении к централизованной системе горячего водоснабжения"]
[]
[null,null,null,null,"Субъект РФ","Республика Татарстан"]
[]
[null,null,null,null,"Публикация2","На сайте регулирующего органа"]
[]
[null,null,null,null,"По решению организации информация раскрыта на ее официальном сайте в сети Интернет?","да"]
[]
[null,null,null,null,"Тип отчета","Первичное раскрытие информации"]
[null,null,null,null,"Дата внесения изменений в информацию, подлежащую раскрытию"]
[]
[null,null,null,null,"Применяется дифференциация тарифа по централизованным системам теплоснабжения?"]
[null,null,null,null,"Информация по скольким централизованным системам теплоснабжения будет заполнена в шаблоне?"]
[]
[null,null,null,null,null,"Отчетный период"]
[null,null,null,null,"Год",2017]
[null,null,null,null,"Квартал","II квартал"]
[]
[null,null,null,null,"Является ли данное юридическое лицо подразделением (филиалом) другой организации"]
[]
[]
[null,null,null,null,"Наименование организации (филиала)","ООО \"Газпром теплоэнерго Казань\""]
[]
[]
[null,null,null,null,"Наименование головной организации"]
[null,null,null,null,"ИНН","1655317579"]
[null,null,null,null,"КПП","165501001"]
[null,null,null,null,"Вид деятельности"]
[]
[null,null,null,null,"Почтовый адрес регулируемой организации","Российская Федерация,423930 Республика Татарстан,г.Бавлы,ул.С.Сайдашева ,дом 4"]
[null,null,null,null,"Фамилия, имя, отчество руководителя","Никитин Виталий Владимирович"]
[]
[null,null,null,null,null,"Ответственный за составление формы"]
[null,null,null,null,"Фамилия, имя, отчество","Хабибуллина Лилия Талгатовна"]
[null,null,null,null,"Должность","ведущий инженер"]
[null,null,null,null,"(код) номер телефона","(885569)56567"]
[null,null,null,null,"e-mail","ptspto@mail.ru"]

{"sheet":"Территории","index":3,"n_rows":16,"n_cols":17,"rows_kept":16,"cut":false,"hidden":false,"merged":[[3,3,3,7],[4,3,4,7],[6,3,6,4],[6,5,6,6],[10,8,10,9],[8,3,8,4],[12,3,14,3],[12,4,14,4],[12,5,13,5],[12,6,13,6],[12,7,13,7],[10,5,10,6],[9,5,9,6],[8,8,8,11],[9,8,9,9],[8,5,8,7]]}
[]
[]
[]
[null,null,null,"Перечень муниципальных районов и муниципальных образований (территорий оказания услуг)"]
[null,null,null,{"$f":"IF(org=0,\"Не определено\",org)","v":"ООО \"Газпром теплоэнерго Казань\""}]
[]
[null,null,null,null,null,"да"]
[]
[null,null,null,"Территория оказания услуг",null,"Муниципальный район",null,null,"Муниципальное образование"]
[null,null,null,"№ п/п","Наименование","№ п/п",null,"Наименование","№ п/п",null,"Наименование","ОКТМО"]
[null,null,null,"1","2","3",null,"4","5",null,"6","7"]
[null,null,null,0,null,"",null,null,""]
[null,"auto",null,1,"Бавлинский муниципальный район, Город Бавлы (92614101);","",1,"Бавлинский муниципальный район","","1","Город Бавлы","92614101",null,null,null,null,"Бавлинский муниципальный район, Город Бавлы (92614101);"]
[null,null,null,null,null,null,null,null,"",null,""]
[null,null,null,null,null,"",null,"",""]
[null,"man",null,null,"","",null,null,"",null,null,null,null,null,null,null,"Добавить территорию оказания услуг"]

{"sheet":"Дифференциация","index":4,"n_rows":26,"n_cols":26,"rows_kept":26,"cut":false,"hidden":false,"merged":[[17,0,18,0],[17,3,17,4],[3,3,3,8],[4,3,4,8],[7,4,7,5],[8,1,8,3],[5,0,6,5],[7,1,7,3],[8,4,8,5],[9,1,9,3],[9,4,9,5],[13,1,13,3],[10,4,10,5],[10,1,10,3],[24,2,25,2],[11,1,11,3],[12,1,12,3],[21,4,23,4],[21,5,23,5],[21,3,23,3],[21,9,22,9],[17,5,17,8],[17,9,17,12],[19,6,19,7],[19,10,19,11],[18,10,18,11],[18,6,18,7],[21,6,22,6],[21,7,22,7],[21,8,22,8]]}
[]
[]
[]
[null,null,null,"Информация о наличии (отсутствии) технической возможности подключения к централизованной системе горячего водоснабжения, а также о регистрации и ходе реализации заявок о подключении к централизованной системе горячего водоснабжения"]
[null,null,null,{"$f":"IF(org=0,\"Не определено\",org)","v":"ООО \"Газпром теплоэнерго Казань\""}]
[]
[]
[]
[]
[]
[]
[]
[]
[]
[]
[]
[]
[null,null,null,"Вид деятельности",null,"Дифференциация по территориям оказания услуг",null,null,null,"Дифференциация по централизованным системам горячего водоснабжения"]
[null,null,null,"№ п/п","Наименование","да/нет","№ п/п",null,"Наименование","да/нет","№ п/п",null,"Наименование"]
[null,null,null,"1","2","3","4",null,"5","6","7",null,"8"]
[]
[null,null,null,"1","Горячее водоснабжение, в том числе приготовление воды на нужды горячего водоснабжения","да",null,1,"Бавлинский муниципальный район, Город Бавлы (92614101);","нет","","1","",null,null,null,null,null,null,null,null,null,null,64237232,"a",1705000]
[null,null,null,null,null,null,null,null,null,null,"",null,""]
[null,null,null,null,null,null,null,null,"",null,""]
[null,null,null,null,"",null,null,null,null,null,""]
[null,null,null,null,null,null,null,null,null,null,""]

{"sheet":"Доступ к товарам и услугам","index":5,"n_rows":23,"n_cols":10,"rows_kept":23,"cut":false,"hidden":false,"merged":[[6,4,7,4],[6,5,7,5],[6,6,7,6],[6,7,7,7],[6,8,6,9],[3,3,3,9],[12,8,12,9],[4,3,4,9],[12,3,22,3],[12,4,22,4],[12,5,22,5],[12,6,13,6],[12,7,13,7],[6,3,7,3],[14,6,15,6],[14,7,15,7],[14,8,14,9],[16,6,17,6],[16,7,17,7],[16,8,16,9],[18,6,19,6],[18,7,19,7],[18,8,18,9],[20,6,21,6],[20,7,21,7],[20,8,20,9]]}
[null,null,null,null,null,null,null,null,null,4]
[]
[]
[null,null,null,"Информация о наличии (отсутствии) технической возможности подключения к централизованной системе горячего водоснабжения, а также о регистрации и ходе реализации заявок о подключении к централизованной системе горячего водоснабжения"]
[null,null,null,{"$f":"IF(org=0,\"Не определено\",org)","v":"ООО \"Газпром теплоэнерго Казань\""}]
[]
[null,null,null,"№ п/п","Информация, подлежащая раскрытию","Единица измерения","О","№ п/п","Вид деятельности:\r\n  - Горячее водоснабжение, в том числе приготовление воды на нужды горячего водоснабжения\r\n\r\nТерритория оказания услуг:\r\n  - Бавлинский муниципальный район, Город Бавлы (92614101);\r\n\r\nЦентрализованная система горячего водоснабжения:\r\n  - без дифференциации"]
[null,null,null,null,null,null,null,null,"Показатель","Комментарий"]
[null,null,null,"1","2","3",null,null,{"$f":"J1&\".1\"","v":"4.1"},{"$f":"J1&\".2\"","v":"4.2"}]
[null,null,null,1,"Количество поданных заявок","шт",null,null,0]
[null,null,null,2,"Количество исполненных заявок","шт",null,null,0]
[null,null,null,3,"Количество заявок с решением об отказе в подключении","шт",null,null,0]
[null,null,null,4,"Резерв мощности централизованной системы горячего водоснабжения в течение квартала","Гкал/час",null,1,"котельная № 9"]
[null,null,null,null,null,null,null,null,0]
[null,null,null,null,null,null,"О",2,"котельная № 15"]
[null,null,null,null,null,null,null,null,0]
[null,null,null,null,null,null,"О",3,"котельная № 23"]
[null,null,null,null,null,null,null,null,0]
[null,null,null,null,null,null,"О",4,"котельная № 27"]
[null,null,null,null,null,null,null,null,0]
[null,null,null,null,null,null,"О",5,"котельная № ЦРБ"]
[null,null,null,null,null,null,null,null,0]
[null,null,null,null,null,null,null,null,"Добавить централизованную систему горячего водоснабжения"]

{"sheet":"Публикация в других источниках","index":6,"n_rows":12,"n_cols":8,"rows_kept":12,"cut":false,"hidden":false,"merged":[[7,3,8,3],[7,4,8,4],[7,5,7,7],[4,3,4,4],[5,3,5,4]]}
[]
[]
[]
[]
[null,null,null,"Публикация в других источниках\n(публикация информации по решению организации на ее официальном сайте в сети \"Интернет\")"]
[null,null,null,{"$f":"IF(org=0,\"Не определено\",org)","v":"ООО \"Газпром теплоэнерго Казань\""}]
[]
[null,null,null,"№ п/п","Описание опубликованной информации","Официальный сайт организации в сети \"Интернет\""]
[null,null,null,null,null,"Дата\nразмещения информации","Адрес официальной страницы сайта\nв сети \"Интернет\", на котором размещена информация","Ссылка на снимок экрана\nофициальной страницы сайта в сети \"Интернет\", на котором размещена информация"]
[null,null,null,"1","2","3","4","5"]
[null,null,null,1,"Информация о наличии (отсутствии) технической возможности подключения к централизованной системе горячего водоснабжения, а также о регистрации и ходе реализации заявок о подключении к централизованной системе горячего водоснабжения (пункт 63 Постановления Правительства РФ от 17.01.2013 N 6 \"О стандартах раскрытия информации в сфере водоснабжения и водоотведения\")","26.07.2017","http://kt.tatarstan.ru/"]
[null,null,null,null,"Добавить опубликованную информацию"]

{"sheet":"Сведения об изменении","index":7,"n_rows":14,"n_cols":5,"rows_kept":14,"cut":false,"hidden":true,"merged":[[6,3,6,4],[7,3,7,4]]}
[]
[]
[]
[]
[]
[]
[null,null,null,"Сведения об изменениях в первоначально опубликованной информации"]
[null,null,null,{"$f":"IF(org=0,\"Не определено\",org)","v":"ООО \"Газпром теплоэнерго Казань\""}]
[]
[null,null,null,"№ п/п","Сведения"]
[null,null,null,"1","2"]
[null,null,null,0]
[null,null,null,1]
[null,null,null,null,"Добавить строку"]

{"sheet":"Комментарии","index":8,"n_rows":13,"n_cols":5,"rows_kept":13,"cut":false,"hidden":false,"merged":[[6,3,6,4],[7,3,7,4]]}
[]
[]
[]
[]
[]
[]
[null,null,null,"Комментарии"]
[null,null,null,{"$f":"IF(org=0,\"Не определено\",org)","v":"ООО \"Газпром теплоэнерго Казань\""}]
[]
[null,null,null,"№ п/п","Комментарий"]
[null,null,null,"1","2"]
[null,null,null,0]
[null,null,null,null,"Добавить"]

{"sheet":"Проверка","index":9,"n_rows":5,"n_cols":5,"rows_kept":5,"cut":false,"hidden":false,"merged":[[1,1,1,4]]}
[]
[null,"Результат проверки"]
[]
[null,"Ссылка1","Ссылка2","Причина","Статус"]
[null,"Публикация в других источниках!G11",null,"Не верно указана гиперссылка в поле 'Адрес сайта в сети Интернет' на листе 'Публикация в других источниках'!","Предупреждение"]

{"sheet":"AllSheetsInThisWorkbook","index":10,"n_rows":39,"n_cols":2,"rows_kept":39,"cut":false,"hidden":true,"merged":[]}
["Расчетные листы","Скрытые листы"]
["Инструкция","AllSheetsInThisWorkbook"]
["Лог обновления","TEHSHEET"]
["Титульный","modCheckCyan"]
["Территории","modSettings"]
["Дифференциация","modfrmSetForPrint"]
["Доступ к товарам и услугам","modInfo"]
["Публикация в других источниках","et_union_hor"]
["Сведения об изменении","et_union_vert"]
["Комментарии","modList00"]
["Проверка","modList01"]
[null,"modList02"]
[null,"modList03"]
[null,"modList07"]
[null,"modList09"]
[null,"modHTTP"]
[null,"modfrmRegion"]
[null,"MR_LIST"]
[null,"REESTR_VT"]
[null,"REESTR_VED"]
[null,"modfrmReestrObj"]
[null,"DataOrg"]
[null,"modProv"]
[null,"modReestr"]
[null,"modfrmReestr"]
[null,"modUpdTemplMain"]
[null,"REESTR_ORG"]
[null,"modClassifierValidate"]
[null,"modHyp"]
[null,"modfrmDateChoose"]
[null,"modComm"]
[null,"modThisWorkbook"]
[null,"REESTR_MO"]
[null,"modfrmReestrMR"]
[null,"modServiceModule"]
[null,"modfrmCheckUpdates"]
[null,"REESTR_DS"]
[null,"REESTR_CHS"]
[null,"REESTR_LINK"]

{"sheet":"TEHSHEET","index":11,"n_rows":60,"n_cols":14,"rows_kept":60,"cut":false,"hidden":true,"merged":[]}
["NSRF",null,"year_list","logical","Месяц\n(MONTH)","Квартал\n(QUARTER)","Месяц\n(kind_of_publication)","Единица измерения объема оказываемых услуг\n/kind_of_unit/","Вид тарифа\n/list_of_tariff/","mr_id","версия шаблона\n (DocProp_Version)","0.1","Тип отчета\ndata_type","Print_form"]
["Алтайский край",null,2013,"да","январь","I квартал","На официальном сайте организации","тыс.куб.м/сутки",null,52,"код шаблона\n(DocProp_TemplateCode)","JKH.OPEN.INFO.QUARTER.WARM.570","Первичное раскрытие информации","Форма 1.1"]
["Амурская область",null,2014,"нет","февраль","II квартал","На сайте регулирующего органа","Гкал/час","Без дифференциации","sys_id","сфера\n(TSphere)","ТС","Корректировка ранее раскрытой информации","Форма 1.2"]
["Астраханская область",null,2015,null,"март","III квартал",null,"тыс.куб.м/час",null,104,"сфера(латиница)\n(TSphere_trans)","WARM","Изменения в раскрытой ранее информации","Форма 1.3"]
["Белгородская область",null,2016,null,"апрель","IV квартал",null,null,null,null,"сфера расширено\n(TSphere_full)",null,null,"Форма 1.4"]
["Брянская область",null,2017,null,"май",null,null,null,null,null,null,null,null,"Форма 1.5"]
["Владимирская область",null,null,null,"июнь",null,null,null,null,null,null,null,null,"Форма 1.6"]
["Волгоградская область",null,null,null,"июль",null,null,null,null,null,"true",null,null,"Форма 1.7"]
["Еврейская автономная область",null,null,null,"август",null,null,null,null,null,null,null,null,"Форма 1.8"]
["Забайкальский край",null,null,null,"сентябрь",null,null,null,null,null,null,null,null,"Форма 1.9"]
["Ивановская область",null,null,null,"октябрь",null,null,null,null,null,"https://appsrv.regportal-tariff.ru/procwsxls/",null,null,"Форма 1.10"]
["Иркутская область",null,null,null,"ноябрь",null,null,null,null,null,null,null,null,"Форма 1.11"]
["Кабардино-Балкарская республика",null,null,null,"декабрь",null,null,null,null,null,null,null,null,"Форма 1.12"]
["Калининградская область",null,null,null,null,null,null,null,null,null,null,null,null,"Форма 2.1"]
["Калужская область",null,null,null,null,null,null,null,null,null,null,null,null,"Форма 2.2"]
["Карачаево-Черкесская республика",null,null,null,null,null,"Текущая дата",null,null,null,null,null,null,"Форма 2.3"]
["Кемеровская область",null,"Организация",{"$f":"IF(f_year = \"\",\"\", IF(LEN(f_quart)=0,\"\",IF(f_quart=\"I квартал\", \"01.01.\"&f_year,IF(f_quart=\"II квартал\",\"01.04.\"&f_year,(IF(f_quart=\"III квартал\", \"01.07.\"&f_year,\"01.10.\"&f_year)))) ))","v":"01.04.2017"},{"$f":"IF(f_year = \"\",\"\", IF(LEN(f_quart)=0,\"\",IF(f_quart=\"I квартал\", \"31.03.\"& f_year,IF(f_quart=\"II квартал\",\"30.06.\"& f_year,(IF(f_quart=\"III квартал\", \"30.09.\"& f_year,\"31.12.\"& f_year)))) ))","v":"30.06.2017"},null,"26.07.2017 13:40:59",null,null,null,null,null,null,"Форма 2.4"]
["Костромская область",null,null,null,null,null,null,null,null,null,null,null,null,"Форма 2.5"]
["Краснодарский край",null,null,null,null,null,"Признак изменения данных на листе Доступ к товарам и услугам",null,null,null,null,null,null,"Форма 2.6"]
["Красноярский край",null,"Виды деятельности",null,null,null,true,null,null,null,null,null,null,"Форма 2.7"]
["Ленинградская область",null,null,null,null,null,null,null,null,null,null,null,null,"Форма 2.8"]
["Мурманская область",null,null,null,null,null,null,null,null,null,null,null,null,"Форма 2.9"]
["Ненецкий автономный округ",null,null,null,null,null,null,null,null,null,null,null,null,"Форма 2.10"]
["Нижегородская область",null,null,null,null,null,null,null,null,null,null,null,null,"Форма 2.11"]
["Новгородская область",null,null,null,null,null,null,null,null,null,null,null,null,"Форма 2.12"]
["Новосибирская область",null,null,null,null,null,null,null,null,null,null,null,null,"Форма 2.13"]
["Омская область",null,null,null,null,null,null,null,null,null,null,null,null,"Форма 2.14"]
["Оренбургская область",null,null,null,null,null,null,null,null,null,null,null,null,"Форма 3.1"]
["Орловская область",null,null,null,null,null,null,null,null,null,null,null,null,"Форма 3.2"]
["Пермский край",null,null,null,null,null,null,null,null,null,null,null,null,"Форма 3.3"]
["Приморский край",null,null,null,null,null,null,null,null,null,null,null,null,"Форма 3.4"]
["Псковская область",null,null,null,null,null,null,null,null,null,null,null,null,"Форма 3.5"]
["Республика Адыгея",null,null,null,null,null,null,null,null,null,null,null,null,"Форма 3.6"]
["Республика Башкортостан",null,null,null,null,null,null,null,null,null,null,null,null,"Форма 3.7"]
["Республика Бурятия",null,null,null,null,null,null,null,null,null,null,null,null,"Форма 3.8"]
["Республика Дагестан",null,null,null,null,null,null,null,null,null,null,null,null,"Форма 3.9"]
["Республика Ингушетия",null,null,null,null,null,null,null,null,null,null,null,null,"Форма 3.10"]
["Республика Калмыкия",null,null,null,null,null,null,null,null,null,null,null,null,"Форма 3.11"]
["Республика Карелия",null,null,null,null,null,null,null,null,null,null,null,null,"Форма 3.12"]
["Республика Крым",null,null,null,null,null,null,null,null,null,null,null,null,"Форма 4.1"]
["Республика Мордовия",null,null,null,null,null,null,null,null,null,null,null,null,"Форма 4.2"]
["Республика Саха",null,null,null,null,null,null,null,null,null,null,null,null,"Форма 4.3"]
["Республика Татарстан",null,null,null,null,null,null,null,null,null,null,null,null,"Форма 4.4"]
["Республика Тыва"]
["Республика Хакасия"]
["Ростовская область"]
["Самарская область"]
["Смоленская область"]
["Ставропольский край"]
["Тверская область"]
["Томская область"]
["Тульская область"]
["Тюменская область"]
["Хабаровский край"]
["Ханты-Мансийский автономный округ"]
["Челябинская область"]
["Чеченская Республика"]
["Чувашская республика"]
["Ярославская область"]
["г.Севастополь"]

{"sheet":"modCheckCyan","index":12,"n_rows":35,"n_cols":1,"rows_kept":35,"cut":false,"hidden":true,"merged":[]}
[]
[{"$f":"IF('Сведения об изменении'!$E$13=\"\",1,0)","v":1}]
[{"$f":"IF('Доступ к товарам и услугам'!$F$13=\"\",1,0)","v":0}]
[{"$f":"IF(Территории!$E$13=\"\",1,0)","v":0}]
[{"$f":"IF(Территории!$H$13=\"\",1,0)","v":0}]
[{"$f":"IF(Территории!$K$13=\"\",1,0)","v":0}]
[{"$f":"IF(Дифференциация!$I$22=\"\",1,0)","v":0}]
[{"$f":"IF('Доступ к товарам и услугам'!$I$11=\"\",1,0)","v":0}]
[{"$f":"IF('Доступ к товарам и услугам'!$I$11=\"Введите наименование централизованной системы горячего водоснабжения\",1,0)","v":0}]
[{"$f":"IF('Доступ к товарам и услугам'!$I$12=\"\",1,0)","v":0}]
[{"$f":"IF('Доступ к товарам и услугам'!$I$12=\"Введите наименование централизованной системы горячего водоснабжения\",1,0)","v":0}]
[{"$f":"IF('Доступ к товарам и услугам'!$I$13=\"\",1,0)","v":0}]
[{"$f":"IF('Доступ к товарам и услугам'!$I$13=\"Введите наименование централизованной системы горячего водоснабжения\",1,0)","v":0}]
[{"$f":"IF('Доступ к товарам и услугам'!$I$14=\"\",1,0)","v":0}]
[{"$f":"IF('Доступ к товарам и услугам'!$I$14=\"Введите наименование централизованной системы горячего водоснабжения\",1,0)","v":0}]
[{"$f":"IF('Доступ к товарам и услугам'!$I$15=\"\",1,0)","v":0}]
[{"$f":"IF('Доступ к товарам и услугам'!$I$15=\"Введите наименование централизованной системы горячего водоснабжения\",1,0)","v":0}]
[{"$f":"IF('Доступ к товарам и услугам'!$I$16=\"\",1,0)","v":0}]
[{"$f":"IF('Доступ к товарам и услугам'!$I$16=\"Введите наименование централизованной системы горячего водоснабжения\",1,0)","v":0}]
[{"$f":"IF('Доступ к товарам и услугам'!$I$17=\"\",1,0)","v":0}]
[{"$f":"IF('Доступ к товарам и услугам'!$I$17=\"Введите наименование централизованной системы горячего водоснабжения\",1,0)","v":0}]
[{"$f":"IF('Доступ к товарам и услугам'!$I$18=\"\",1,0)","v":0}]
[{"$f":"IF('Доступ к товарам и услугам'!$I$18=\"Введите наименование централизованной системы горячего водоснабжения\",1,0)","v":0}]
[{"$f":"IF('Доступ к товарам и услугам'!$I$19=\"\",1,0)","v":0}]
[{"$f":"IF('Доступ к товарам и услугам'!$I$19=\"Введите наименование централизованной системы горячего водоснабжения\",1,0)","v":0}]
[{"$f":"IF('Доступ к товарам и услугам'!$I$20=\"\",1,0)","v":0}]
[{"$f":"IF('Доступ к товарам и услугам'!$I$20=\"Введите наименование централизованной системы горячего водоснабжения\",1,0)","v":0}]
[{"$f":"IF('Доступ к товарам и услугам'!$I$21=\"\",1,0)","v":0}]
[{"$f":"IF('Доступ к товарам и услугам'!$I$21=\"Введите наименование централизованной системы горячего водоснабжения\",1,0)","v":0}]
[{"$f":"IF('Доступ к товарам и услугам'!$I$22=\"\",1,0)","v":0}]
[{"$f":"IF('Доступ к товарам и услугам'!$I$22=\"Введите наименование централизованной системы горячего водоснабжения\",1,0)","v":0}]
[{"$f":"IF('Доступ к товарам и услугам'!$I$10=\"\",1,0)","v":0}]
[{"$f":"IF('Доступ к товарам и услугам'!$I$10=\"Введите наименование централизованной системы горячего водоснабжения\",1,0)","v":0}]
[{"$f":"IF('Публикация в других источниках'!$F$11=\"\",1,0)","v":0}]
[{"$f":"IF('Публикация в других источниках'!$G$11=\"\",1,0)","v":0}]

{"sheet":"modSettings","index":13,"n_rows":14,"n_cols":3,"rows_kept":14,"cut":false,"hidden":true,"merged":[]}
["Версия шаблона","VERS_TEMP","BASE"]
["Настройка справочника наименований тарифов (Y / N)","FLAG_NAME_OF_TARIFF","YY"]
["Функционал уведомлений о раскрытии (Y / N)","FLAG_OPEN_UVED","YY"]
["Функционал отслеживания типа отчета (Y / N)","FLAG_TYPE_OF_REP","YY"]
["Подрезание МР/МО по сфере оказания услуг (Y / N)","FLAG_MR_MO","YY"]
["Печать шаблона (Y / N)","FLAG_PRINT_TEMP","YY"]
["Печатные формы (Y / N)","FLAG_PRINT_FORM","YY"]
["Размещение в шаблоне ссылок на материалы Хранилища (Y / N)","FLAG_LINK_DOC","NN"]
["Отметка об отсутствии Интернета в МР/МО (Y / N)","FLAG_INTERNET_MR_MO","YY"]
["Отметка о сдаче бух баланса (Y / N)","FLAG_BUH_BAL","YY"]
["Отметка о доле выручки (Y / N)","FLAG_PART_OF_REV","YY"]
["Отображение данных об организации (Y / N)","FLAG_DATA_ORG","YY"]
["Флаг забора данных из шаблонов группы PRICE (Y / N)","FLAG_AUTOFILL_PRICE","NN"]
["Наличие ссылок на снимки экрана страницы сайта в сети Интернет, на которой размещена информация (Y / N)","FLAG_REF","YY"]

{"sheet":"modfrmSetForPrint","index":14,"n_rows":0,"n_cols":0,"rows_kept":0,"cut":false,"hidden":true,"merged":[]}

{"sheet":"modInfo","index":15,"n_rows":25,"n_cols":2,"rows_kept":25,"cut":false,"hidden":true,"merged":[[16,3,16,10],[10,3,10,10],[11,3,11,10],[12,3,12,10],[13,3,13,10],[14,3,14,10],[15,3,15,10]]}
[null,"Титульный"]
[7,"Шаблон предназначен для отправки в субъект РФ, на территории которого осуществляется оказание услуг"]
[1,"Шаблон предназначен для предоставления в регулирующий орган следующей информации:\n1) о наличии (отсутствии) технической возможности подключения к централизованной системе горячего водоснабжения, а также о регистрации и ходе реализации заявок о подключении к централизованной системе горячего водоснабжения согласно пункту 63 Постановления Правительства РФ от 17.01.2013 N 6;\n2) cведения о раскрытии соответствующей информации на официальном сайте организации в сети Интернет, подлежащие предоставлению в орган исполнительной власти субъекта Российской Федерации в области государственного регулирования цен (тарифов) согласно пункту 10 Постановления Правительства РФ от 17.01.2013 N6;\n3) cведения об изменении, подлежащие публикации, на основании требований пункта 11 Постановления Правительства РФ от 17.01.2013 N 6."]
[2,"Информация, подлежит обязательному опубликованию на официальном сайте в сети \"Интернет\" органа исполнительной власти субъекта Российской Федерации в области государственного регулирования цен (тарифов), и (или) на официальном сайте органа местного самоуправления поселения или городского округа в случае их наделения в соответствии с законом субъекта Российской Федерации полномочиями по государственному регулированию цен (тарифов), согласно пункту 3а) Постановления Правительства РФ от 05.07.2013 №570."]
[3,"Если информация публикуется только на официальном сайте в информационно-телекоммуникационной сети \"Интернет\" (далее – сети Интернет) органа исполнительной власти субъекта Российской Федерации в области государственного регулирования цен (тарифов) или на официальном сайте органа местного самоуправления поселения или городского округа в случае их наделения в соответствии с законом субъекта Российской Федерации полномочиями по государственному регулированию цен (тарифов), в поле \"По решению организации информация раскрыта на ее официальном сайте в сети Интернет?\" необходимо указать \"Нет\".\n\nЕсли же информация дополнительно публикуется на официальном сайте организации в сети Интернет, в поле \"По решению организации информация раскрыта на ее официальном сайте в сети Интернет?\" необходимо указать \"Да\"."]
[4,"По умолчанию установлено значение «Первичное раскрытие информации». Это означает, что информация раскрывается в соответствии с установленными сроком и периодичностью.\n\nВ случае, если в раскрываемой информации произошли изменения, сведения об этих изменениях подлежат опубликованию в шаблоне с типом отчета \"Изменения в раскрытой ранее информации\".\n\nВ случае, если в уже отправленном шаблоне обнаружена ошибка, исправленный шаблон необходимо отправить с типом отчета «Корректировка ранее раскрытой информации»."]
[5,"В случае, если регулируемыми организациями оказываются услуги по нескольким технологически не связанным между собой централизованным системам горячего водоснабжения и если в отношении указанных систем устанавливаются различные тарифы в сфере горячего водоснабжения, то информация раскрывается отдельно по каждой централизованной системе горячего водоснабжения."]
[6]
[null,"Публикация на прочих ресурсах"]
[null,"Вводите адрес сайта, не нарушая цвет ячейки /если копируете гиперссылку из браузера, то выполните двойной щелчок по ячейке и только после этого можете вставить скопированный элемент/\nДля редактирования указанной гиперссылки или перехода по ней выполните двойной щелчок левой клавиши мыши по ячейке"]
[null,{"$f":"IF(OR(FLAG_LINK_DOC=\"Y\",FLAG_LINK_DOC=\"NY\",FLAG_LINK_DOC=\"YY\"),\"Указывается ссылка на загруженный в Хранилище ЕИАС снимок экрана официальной страницы сайта, на котором размещена информация\",\"Указывается ссылка на загруженный в Интернет-ресурс снимок экрана официальной страницы сайта, на котором размещена информация\") & \". Для редактирования указанной гиперссылки или перехода по ней выполните двойной щелчок левой клавиши мыши по ячейке\"","v":"Указывается ссылка на загруженный в Интернет-ресурс снимок экрана официальной страницы сайта, на котором размещена информация. Для редактирования указанной гиперссылки или перехода по ней выполните двойной щелчок левой клавиши мыши по ячейке"}]
[null,"Указывается дата, по состоянию на которую информация стала доступной в сети Интернет для неограниченного круга лиц\nВыберите значение из календаря (иконка справа от выбранной ячейки), либо введите дату непосредственно в ячейку в формате - 'ДД.ММ.ГГГГ'"]
[null,"Территории"]
[1,"Наименование территории оказания услуг для целей идентификации"]
[2,"Муниципальные районы и муниципальные образования, на территории которых осуществляется оказание услуг"]
[null,"Дифференциация"]
[1,"В случае, если регулируемая организация осуществляет несколько видов деятельности, информация о которых подлежит раскрытию, информация по каждому виду деятельности раскрывается отдельно."]
[2,"Поле заполняется выбором значений из списка. Если значений для выбора нет - убедитесь, что лист \"Территории\" заполнен."]
[3,"Условное наименование централизованной системы горячего водоснабжения для целей идентификации."]
[4,"В случае, если регулируемыми организациями оказываются услуги по нескольким технологически не связанным между собой  централизованным системам горячего водоснабжения и если в отношении указанных централизованных систем устанавливаются различные тарифы в сфере горячего водоснабжения, то информация раскрывается отдельно по каждой централизованной системе горячего водоснабжения."]
[null,"Доступ к товарам и услугам"]
[1,"При использовании регулируемой организацией нескольких централизованных систем горячего водоснабжения информация о резерве мощности таких централизованных систем публикуется в отношении каждой централизованной системы горячего водоснабжения."]
[null,"Сведения об изменении"]
[1,"Лист заполняется в случае, если на Титульном листе в поле \"Тип отчета\" выбрано значение «Изменения в раскрытой ранее информации»."]
[null,"Нет доступных обновлений, версия отчёта актуальна"]

{"sheet":"et_union_hor","index":16,"n_rows":46,"n_cols":26,"rows_kept":46,"cut":false,"hidden":true,"merged":[[18,3,20,3],[18,4,20,4],[18,5,19,5],[18,6,19,6],[24,5,25,5],[24,6,25,6],[24,7,25,7],[34,8,35,8],[18,7,19,7],[40,8,41,8],[40,9,41,9],[34,3,36,3],[34,4,36,4],[34,5,36,5],[34,6,35,6],[34,7,35,7],[40,6,41,6],[40,7,41,7],[34,9,35,9]]}
[]
[]
["et_List02"]
[]
[]
[]
["et_Comm"]
[]
[]
[]
["et_List03"]
[]
[]
[]
[]
[]
["et_List09_0"]
[]
[null,"auto",null,1,null,null,1,null,null,"1"]
[null,null,null,null,null,null,null,null,null,null,"Добавить МО"]
[null,null,null,null,null,null,null,"Добавить МР"]
[]
["et_List09_1"]
[]
[null,"auto",null,null,null,null,1,null,null,1]
[null,null,null,null,null,null,null,null,null,null,"Добавить МО"]
[]
["et_List09_2"]
[]
[null,"auto",null,null,null,null,null,null,null,1]
[]
[]
["et_List07_1"]
[]
[null,null,null,"1",null,"нет",null,1,null,"нет",null,"1",null,null,null,null,null,null,null,null,null,null,null,null,"a",1705000]
[null,null,null,null,null,null,null,null,null,null,null,null,"Добавить централизованную систему горячего водоснабжения"]
[null,null,null,null,null,null,null,null,"Добавить описание территории оказания услуг"]
[]
["et_List07_4"]
[]
[null,null,null,null,null,null,null,1,"","нет",null,"1",null,null,null,null,null,null,null,null,null,null,null,null,"a",1705000]
[null,null,null,null,null,null,null,null,null,null,null,null,"Добавить централизованную систему горячего водоснабжения"]
[]
["et_List07_5"]
[]
[null,null,null,null,null,null,null,null,null,null,null,"1","",null,null,null,null,null,null,null,null,null,null,null,"a",1705000]

{"sheet":"et_union_vert","index":17,"n_rows":0,"n_cols":0,"rows_kept":0,"cut":false,"hidden":true,"merged":[]}

{"sheet":"modList00","index":18,"n_rows":0,"n_cols":0,"rows_kept":0,"cut":false,"hidden":true,"merged":[]}

{"sheet":"modList01","index":19,"n_rows":22,"n_cols":10,"rows_kept":22,"cut":false,"hidden":true,"merged":[[12,8,12,9],[3,3,3,9],[4,3,4,9],[6,3,7,3],[6,4,7,4],[6,5,7,5],[6,6,7,6],[6,8,6,9],[6,7,7,7],[12,7,13,7],[12,3,22,3],[12,4,22,4],[12,5,22,5],[12,6,13,6],[14,6,15,6],[14,7,15,7],[20,8,20,9],[14,8,14,9],[16,6,17,6],[16,7,17,7],[16,8,16,9],[18,6,19,6],[18,7,19,7],[18,8,18,9],[20,6,21,6],[20,7,21,7]]}
[]
[]
[]
[]
[]
[]
[]
[null,null,null,null,null,null,null,null,"Показатель","Комментарий"]
[null,null,null,"1","2","3",null,null,{"$f":"J1&\".1\"","v":".1"},{"$f":"J1&\".2\"","v":".2"}]
[]
[]
[]
[null,null,null,null,null,null,null,null,"Введите наименование централизованной системы горячего водоснабжения"]
[null,null,null,null,null,null,null,null,""]
[null,null,null,null,null,null,"О",null,"Введите наименование централизованной системы горячего водоснабжения"]
[null,null,null,null,null,null,null,null,""]
[null,null,null,null,null,null,"О",null,"Введите наименование централизованной системы горячего водоснабжения"]
[null,null,null,null,null,null,null,null,""]
[null,null,null,null,null,null,"О",null,"Введите наименование централизованной системы горячего водоснабжения"]
[null,null,null,null,null,null,null,null,""]
[null,null,null,null,null,null,"О",null,"Введите наименование централизованной системы горячего водоснабжения"]
[null,null,null,null,null,null,null,null,""]

{"sheet":"modList02","index":20,"n_rows":0,"n_cols":0,"rows_kept":0,"cut":false,"hidden":true,"merged":[[7,5,7,7],[7,3,8,3],[7,4,8,4],[4,3,4,4],[5,3,5,4]]}

{"sheet":"modList03","index":21,"n_rows":0,"n_cols":0,"rows_kept":0,"cut":false,"hidden":true,"merged":[[6,3,6,4],[7,3,7,4]]}

{"sheet":"modList07","index":22,"n_rows":22,"n_cols":26,"rows_kept":22,"cut":false,"hidden":true,"merged":[[8,1,8,3],[8,4,8,5],[11,1,11,3],[12,1,12,3],[13,1,13,3],[3,3,3,8],[4,3,4,8],[5,0,6,5],[7,1,7,3],[21,9,22,9],[9,1,9,3],[9,4,9,5],[10,1,10,3],[10,4,10,5],[21,6,22,6],[21,8,22,8],[21,5,23,5],[17,0,18,0],[17,3,17,4],[17,5,17,8],[7,4,7,5],[24,2,25,2],[17,9,17,12],[18,6,18,7],[18,10,18,11],[19,6,19,7],[19,10,19,11],[21,3,23,3],[21,4,23,4],[21,7,22,7]]}
[]
[]
[]
[]
[]
[]
[]
[]
[]
[]
[]
[]
[]
[]
[]
[]
[]
[]
[]
[]
[]
[null,null,null,null,null,null,null,null,null,null,null,null,null,null,null,null,null,null,null,null,null,null,null,64279412,"a",1705000]

{"sheet":"modList09","index":23,"n_rows":16,"n_cols":4,"rows_kept":16,"cut":false,"hidden":true,"merged":[[12,6,13,6],[12,7,13,7],[8,5,8,7],[8,3,8,4],[12,3,14,3],[12,4,14,4],[12,5,13,5],[10,5,10,6],[10,8,10,9],[3,3,3,7],[4,3,4,7],[6,3,6,4],[6,5,6,6],[8,8,8,11],[9,5,9,6],[9,8,9,9]]}
[]
[]
[]
[]
[]
[]
[]
[]
[]
[]
[]
[null,null,null,0]
[null,"man"]
[]
[]
[null,"man"]

{"sheet":"modHTTP","index":24,"n_rows":0,"n_cols":0,"rows_kept":0,"cut":false,"hidden":true,"merged":[]}

{"sheet":"modfrmRegion","index":25,"n_rows":0,"n_cols":0,"rows_kept":0,"cut":false,"hidden":true,"merged":[]}

{"sheet":"MR_LIST","index":26,"n_rows":0,"n_cols":0,"rows_kept":0,"cut":false,"hidden":true,"merged":[]}

{"sheet":"REESTR_VT","index":27,"n_rows":0,"n_cols":0,"rows_kept":0,"cut":false,"hidden":true,"merged":[]}

{"sheet":"REESTR_VED","index":28,"n_rows":4,"n_cols":2,"rows_kept":4,"cut":false,"hidden":true,"merged":[]}
["ID_TARIFF_NAME","VED_NAME"]
[64237232,"Горячее водоснабжение, в том числе приготовление воды на нужды горячего водоснабжения"]
[64237233,"Горячее водоснабжение, в том числе транспортировка горячей воды"]
[64237234,"Подключение (технологическое присоединение) к централизованной системе горячего водоснабжения"]

{"sheet":"modfrmReestrObj","index":29,"n_rows":0,"n_cols":0,"rows_kept":0,"cut":false,"hidden":true,"merged":[]}

{"sheet":"DataOrg","index":30,"n_rows":0,"n_cols":0,"rows_kept":0,"cut":false,"hidden":true,"merged":[]}

{"sheet":"modProv","index":31,"n_rows":0,"n_cols":0,"rows_kept":0,"cut":false,"hidden":true,"merged":[]}

{"sheet":"modReestr","index":32,"n_rows":0,"n_cols":0,"rows_kept":0,"cut":false,"hidden":true,"merged":[]}

{"sheet":"modfrmReestr","index":33,"n_rows":0,"n_cols":0,"rows_kept":0,"cut":false,"hidden":true,"merged":[]}

{"sheet":"modUpdTemplMain","index":34,"n_rows":0,"n_cols":0,"rows_kept":0,"cut":false,"hidden":true,"merged":[]}

{"sheet":"REESTR_ORG","index":35,"n_rows":54,"n_cols":10,"rows_kept":54,"cut":false,"hidden":true,"merged":[]}
["№","REGION_ID","REGION_NAME","RST_ORG_ID","ORG_NAME","INN_NAME","KPP_NAME","ORG_START_DATE","ORG_END_DATE"]
[1,"2642","Республика Татарстан","26354394","АО \"АПТС\"","1644035607","164401001",null,null,"HOT_VS"]
[2,"2642","Республика Татарстан","26354332","АО \"Высокогорские коммунальные сети\"","1616016031","161601001",null,null,"HOT_VS"]
[3,"2642","Республика Татарстан","30791606","АО \"ГУ ЖКХ\"","5116000922","166045001",null,null,"HOT_VS"]
[4,"2642","Республика Татарстан","26560525","АО \"ГУ ЖКХ\"","5116000922","511601001","13-05-2009 00:00:00",null,"HOT_VS"]
[5,"2642","Республика Татарстан","26354399","АО \"Елабужское предприятие тепловых сетей\"","1646020589","164601001",null,null,"HOT_VS"]
[6,"2642","Республика Татарстан","28421604","АО \"Зеленодольский молочноперерабатывающий комбинат\"","1648033456","164801001",null,null,"HOT_VS"]
[7,"2642","Республика Татарстан","28494222","АО \"Казэнерго\"","1659143468","165901001",null,null,"HOT_VS"]
[8,"2642","Республика Татарстан","26354470","АО \"НИИнефтепромхим\"","1660000129","166001001",null,null,"HOT_VS"]
[9,"2642","Республика Татарстан","26322562","АО \"ОЭЗ ППТ \"Алабуга\"","1646019914","164601001",null,null,"HOT_VS"]
[10,"2642","Республика Татарстан","26354409","АО \"Осиновские инженерные сети\"","1648018708","164801001",null,null,"HOT_VS"]
[11,"2642","Республика Татарстан","27556424","АО \"РПО \"Таткоммунэнерго\"","1660093204","166001001",null,null,"HOT_VS"]
[12,"2642","Республика Татарстан","26489288","АО \"Татэнерго\"","1657036630","165501001","01-02-2009 00:00:00",null,"HOT_VS"]
[13,"2642","Республика Татарстан","27567057","Акционерное общество \"Ремонтно-эксплуатационное управление\" филиал \"Екатеринбургский\", г. Екатеринбург","7714783092","667243001",null,null,"HOT_VS"]
[14,"2642","Республика Татарстан","26808802","Горьковская дирекция по тепловодоснабжению структурное подразделение Центральной дирекции по тепловодоснабжению - филиала ОАО \"РЖД\"","7708503727","525745041",null,null,"HOT_VS"]
[15,"2642","Республика Татарстан","26354330","ЗАО \"Буинское предприятие тепловых сетей\"","1614008074","161401001",null,null,"HOT_VS"]
[16,"2642","Республика Татарстан","26490816","ЗАО \"ТГК Уруссинская ГРЭС\"","1642005075","164201001",null,null,"HOT_VS"]
[17,"2642","Республика Татарстан","26354341","Лечебно - профилактическое учреждение профсоюзов санаторий \"Васильевский\"","1620000411","162001001",null,null,"HOT_VS"]
[18,"2642","Республика Татарстан","26354343","МУП \"Нурлатское МПП ЖКХ\"","1620002144","162001001",null,null,"HOT_VS"]
[19,"2642","Республика Татарстан","26354392","МУП \"Светсервис\"","1644031761","164401001",null,null,"HOT_VS"]
[20,"2642","Республика Татарстан","28493154","ОАО \"Азнакаевское ПТС\"","1643013463","164301001",null,null,"HOT_VS"]
[21,"2642","Республика Татарстан","26354397","ОАО \"Бугульминское предприятие тепловых сетей\"","1645021727","164501001",null,null,"HOT_VS"]
[22,"2642","Республика Татарстан","26354405","ОАО \"Зеленодольское предприятие тепловых сетей\"","1648017567","164801001",null,null,"HOT_VS"]
[23,"2642","Республика Татарстан","26516084","ОАО \"Таттеплосбыт\"","1657092881","168150001","01-04-2010 00:00:00",null,"HOT_VS"]
[24,"2642","Республика Татарстан","26354428","ОАО \"Чистопольское предприятие тепловых сетей\"","1652011455","165201001",null,null,"HOT_VS"]
[25,"2642","Республика Татарстан","26354412","ОАО \"Шугуровское МПП\"","1649011720","164901001",null,null,"HOT_VS"]
[26,"2642","Республика Татарстан","26354398","ООО \"Альгазтранс-Елабуга\"","1646016889","164601001",null,null,"HOT_VS"]
[27,"2642","Республика Татарстан","26354391","ООО \"Альтехносервис\"","1644023351","164401001",null,null,"HOT_VS"]
[28,"2642","Республика Татарстан","28902265","ООО \"Газпром теплоэнерго Казань\"","1655317579","165501001","12-01-2015 00:00:00",null,"HOT_VS"]
[29,"2642","Республика Татарстан","26354369","ООО \"Коммунальные сети - Бетьки\"","1639035143","163901001",null,null,"HOT_VS"]
[30,"2642","Республика Татарстан","26405825","ООО \"Лаишевский Коммунальный Сервис\"","1624010851","162401001",null,null,"HOT_VS"]
[31,"2642","Республика Татарстан","30346024","ООО \"Лениногорские тепловые сети\"","1649022584","164901001",null,null,"HOT_VS"]
[32,"2642","Республика Татарстан","30802655","ООО \"Осиновская теплоснабжающая компания\"","1648041792","164801001",null,null,"HOT_VS"]
[33,"2642","Республика Татарстан","26405826","ООО \"РСК\" Инженерные Технологии\"","1624010844","162401001",null,null,"HOT_VS"]
[34,"2642","Республика Татарстан","28435821","ООО \"Тепло\"","1601008870","160101001",null,null,"HOT_VS"]
[35,"2642","Республика Татарстан","26354393","ООО \"Тепло-Энергосервис\"","1644032236","164401001",null,null,"HOT_VS"]
[36,"2642","Республика Татарстан","28423143","ООО \"Тепло-Энергосервис+\"","1644067711","164401001",null,null,"HOT_VS"]
[37,"2642","Республика Татарстан","26642081","ООО \"Теплосбыт\"","1601006880","160101001",null,null,"HOT_VS"]
[38,"2642","Республика Татарстан","28266282","ООО \"Теплоснабсервис\"","1655256968","165501001",null,null,"HOT_VS"]
[39,"2642","Республика Татарстан","26511105","ООО \"Теплострой\"","1633606560","163301001",null,null,"HOT_VS"]
[40,"2642","Республика Татарстан","27544484","ООО \"Управляющая компания \"Индустриальный парк - Сервис\"","1651063644","165101001",null,null,"HOT_VS"]
[41,"2642","Республика Татарстан","30852067","ООО \"Шугуровские сети\"","1649036361","164901001",null,null,"HOT_VS"]
[42,"2642","Республика Татарстан","26383226","ООО «Газпром трансгаз Казань»","1600000036","166001001",null,null,"HOT_VS"]
[43,"2642","Республика Татарстан","26354427","ООО ПКФ \"Восток-Энерго\"","1652007515","165201001",null,null,"HOT_VS"]
[44,"2642","Республика Татарстан","30403097","Общество с ограниченной ответственностью \"Управляющая компания Алсу 2\"","1644066299","164401001",null,null,"HOT_VS"]
[45,"2642","Республика Татарстан","28903507","ПАО \"Казанский вертолетный завод\"","1656002652","997850001",null,null,"HOT_VS"]
[46,"2642","Республика Татарстан","26354352","Санаторий \"Ижминводы\"","1627000509","162701001",null,null,"HOT_VS"]
[47,"2642","Республика Татарстан","30903763","ФГБУ \"ЦЖКУ\" МИНОБОРОНЫ РОССИИ","7729314745","770101001",null,null,"HOT_VS"]
[48,"2642","Республика Татарстан","30914574","ФГБУ \"ЦЖКУ\" МИНОБОРОНЫ РОССИИ (по ЦВО)","7729314745","667043001",null,null,"HOT_VS"]
[49,"2642","Республика Татарстан","26354430","Филиал \"Казаньнефтепродукт\" ОАО ХК \"Татнефтепродукт\"","1653016921","165902002",null,null,"HOT_VS"]
[50,"2642","Республика Татарстан","26354449","Филиал ЗАО \"Татгазэнерго\" \"Бавлинский\"","1655098239","161131001",null,null,"HOT_VS"]
[51,"2642","Республика Татарстан","26354448","Филиал ЗАО \"Татгазэнерго\" \"Менделеевский\"","1655098239","165501001",null,null,"HOT_VS"]
[52,"2642","Республика Татарстан","28446131","Филиал ООО УК \"ПРОСТО МОЛОКО\" - \"Казанский молочный комбинат\"","1660183627","166043001",null,null,"HOT_VS"]
[53,"2642","Республика Татарстан","26467064","Челнинский филиал ООО \"Татнефть-АЗС Центр\"","1644040195","163943001",null,null,"HOT_VS"]

{"sheet":"modClassifierValidate","index":36,"n_rows":0,"n_cols":0,"rows_kept":0,"cut":false,"hidden":true,"merged":[]}

{"sheet":"modHyp","index":37,"n_rows":0,"n_cols":0,"rows_kept":0,"cut":false,"hidden":true,"merged":[]}

{"sheet":"modfrmDateChoose","index":38,"n_rows":0,"n_cols":0,"rows_kept":0,"cut":false,"hidden":true,"merged":[]}

{"sheet":"modComm","index":39,"n_rows":0,"n_cols":0,"rows_kept":0,"cut":false,"hidden":true,"merged":[]}

{"sheet":"modThisWorkbook","index":40,"n_rows":0,"n_cols":0,"rows_kept":0,"cut":false,"hidden":true,"merged":[]}

{"sheet":"REESTR_MO","index":41,"n_rows":3,"n_cols":4,"rows_kept":3,"cut":false,"hidden":true,"merged":[]}
["№","МР","МО","МО_ОКТМО"]
[1,"Менделеевский муниципальный район","Город Менделеевск","92639101"]
[2,"Бавлинский муниципальный район","Город Бавлы","92614101"]

{"sheet":"modfrmReestrMR","index":42,"n_rows":0,"n_cols":0,"rows_kept":0,"cut":false,"hidden":true,"merged":[]}

{"sheet":"modServiceModule","index":43,"n_rows":0,"n_cols":0,"rows_kept":0,"cut":false,"hidden":true,"merged":[]}

{"sheet":"modfrmCheckUpdates","index":44,"n_rows":0,"n_cols":0,"rows_kept":0,"cut":false,"hidden":true,"merged":[]}

{"sheet":"REESTR_DS","index":45,"n_rows":5,"n_cols":2,"rows_kept":5,"cut":false,"hidden":true,"merged":[]}
[]
[]
[null,"Бавлинский муниципальный район, Город Бавлы (92614101);"]
[null,"описание 2"]
[null,"Добавить "]

{"sheet":"REESTR_CHS","index":46,"n_rows":0,"n_cols":0,"rows_kept":0,"cut":false,"hidden":true,"merged":[]}

{"sheet":"REESTR_LINK","index":47,"n_rows":2,"n_cols":3,"rows_kept":2,"cut":false,"hidden":true,"merged":[]}
["ID","LINK_NAME","REGION"]
[64275710,"https://tariff.eias.ru/disclo/get_file?p_guid=????????-????-????-????-????????????","ALL"]